fUSD/lending_fUSD_20240914
["ID","MTS","AMOUNT","RATE_DAILY","PERIOD"]
[338167104,1726333832338,-2371.05,0.00013492,2]
[338167105,1726333832351,-250.0,0.00013554,2]
[338167106,1726333832367,-175.99,0.0001357,2]
[338167107,1726333832381,-499.99,0.0001357,2]
[338167108,1726333832400,-4232.43,0.0001357,2]
[338167109,1726333832417,-1868.36,0.00013571,2]
[338167110,1726333832431,-150.0,0.00013605,2]
[338167111,1726333832445,-11413.76734384,0.00013606,2]
[338167112,1726333832456,-150.0,0.00013608,2]
[338167113,1726333832469,-150.0,0.0001362,2]
[338167114,1726333832482,-150.0,0.0001365,2]
[338167115,1726333832495,-1000.0,0.00013881,2]
[338167116,1726333832509,-207.96,0.00013905,2]
[338167117,1726333832523,-2000.0,0.00014,2]
[338167118,1726333832536,-2507.0,0.00014,2]
[338167119,1726333832547,-500.0,0.00014,2]
[338167120,1726333832557,-500.0,0.00014,2]
[338167121,1726333832570,-500.0,0.00014,2]
[338167122,1726333832583,-500.0,0.00014,2]
[338167123,1726333832596,-500.0,0.00014,2]
[338167124,1726333832609,-500.0,0.00014,2]
[338167125,1726333832620,-500.0,0.00014,2]
[338167126,1726333832633,-500.0,0.00014,2]
[338167127,1726333832645,-500.0,0.00014,2]
[338167128,1726333832655,-500.0,0.00014,2]
[338167129,1726333832667,-500.0,0.00014,2]
[338167130,1726333832683,-635.75,0.00014,2]
[338167132,1726333832697,-500.0,0.00014,2]
[338167134,1726333832711,-500.0,0.00014,2]
[338167137,1726333832725,-500.0,0.00014,2]
[338167139,1726333832738,-500.0,0.00014,2]
[338167142,1726333832752,-500.0,0.00014,2]
[338167143,1726333832763,-500.0,0.00014,2]
[338167144,1726333832775,-500.0,0.00014,2]
[338167145,1726333832787,-500.0,0.00014,2]
[338167146,1726333832800,-500.0,0.00014,2]
[338167147,1726333832812,-500.0,0.00014,2]
[338167148,1726333832825,-500.0,0.00014,2]
[338167149,1726333832837,-403.88,0.00014,2]
[338167150,1726333832851,-500.0,0.00014,2]
[338167151,1726333832864,-500.0,0.00014,2]
[338167152,1726333832876,-500.0,0.00014,2]
[338167153,1726333832889,-500.0,0.00014,2]
[338167154,1726333832912,-500.0,0.00014,2]
[338167155,1726333832924,-500.0,0.00014,2]
[338167156,1726333832935,-10000.0,0.00014143,2]
[338167157,1726333832946,-150.0,0.00014295,2]
[338167158,1726333832958,-2000.0,0.000145,2]
[338167159,1726333832970,-1016.36326269,0.000147,2]
[338167160,1726333832983,-1099.83334012,0.000147,2]
[338167161,1726333832995,-1146.84261239,0.000147,2]
[338167162,1726333833007,-635.37935566,0.00014775,2]
[338167163,1726333833020,-3000.0,0.000148,2]
[338167164,1726333833033,-833.12351,0.0001485,2]
[338167165,1726333833045,-1542.5,0.0001489,2]
[338167166,1726333833058,-179.985,0.00014897,2]
[338167167,1726333833072,-1712.2639,0.000149,2]
[338167168,1726333833085,-495.54226176,0.000149,2]
[338167169,1726333833097,-172.76901356,0.000149,2]
[338167170,1726333833110,-175.18324582,0.000149,2]
[338167171,1726333833123,-1615.15768887,0.000149,2]
[338167172,1726333833136,-250.0,0.00014983,3]
[338167173,1726333833155,-151.0,0.0001499,2]
[338167174,1726333833168,-216.74872697,0.0001499,2]
[338167175,1726333833180,-153.89,0.0001499,2]
[338167176,1726333833193,-153.89,0.0001499,2]
[338167177,1726333833206,-153.89,0.0001499,2]
[338167178,1726333833219,-144124.69659822,0.00014993,2]
[338167179,1726333833235,-3741.09325498,0.00014993,2]
[338167180,1726333833247,-541.0,0.00015,2]
[338167181,1726333833259,-13656.90039903,0.00015,2]
[338167182,1726333833351,-300.0,0.00015,2]
[338167183,1726333833369,-3700.0,0.00015,2]
[338167184,1726333833386,-1451.24090158,0.00015,2]
[338167185,1726333833409,-848.68274638,0.00015,2]
[338167190,1726333838189,-1073.301799,0.00013357,2]
[338167191,1726333838200,-385.098201,0.00015,2]
[338167192,1726333838212,-1500.0,0.00015,2]
[338167193,1726333838406,-255.53745705,0.00015,2]
[338167194,1726333838519,-1828.56798084,0.00015,2]
[338167195,1726333838532,-27789.840896,0.00015,2]
[338167199,1726333838665,-683.52597038,0.00015,2]
[338167261,1726333840563,-28413.12954961,0.00015,2]
[338167290,1726333843746,-720.70825157,0.00015,2]
[338167293,1726333846211,-15022.75,0.00015,2]
[338167294,1726333846225,-92145.76142718,0.00015,2]
[338167295,1726333846235,-433957.75898101,0.00015,2]
[338167296,1726333846266,-278.93838436,0.00015,2]
[338167298,1726333860418,-349.2404,0.00013178,2]
[338167299,1726333882559,-2216.94258126,0.0001376,2]
[338167300,1726333883213,-514.9049,0.00013369,2]
[338167301,1726333965489,-250.0,0.00013923,2]
[338167303,1726334045561,-174.37,0.00013917,2]
[338167304,1726334104182,-393.88311511,0.00013917,2]
[338167305,1726334127593,150.0,0.00010959,2]
[338167306,1726334127615,46.41,0.00010959,2]
[338167307,1726334218942,150.0,0.00011599,2]
[338167308,1726334218964,108.0,0.00011599,2]
[338167309,1726334381296,150.0,0.0001263,2]
[338167310,1726334445188,-183.00821368,0.00013388,2]
[338167311,1726334458767,150.0,0.00011,2]
[338167312,1726334458788,150.0,0.00011,2]
[338167313,1726334458810,150.0,0.00011,2]
[338167314,1726334458833,150.0,0.00011,2]
[338167315,1726334458853,150.0,0.00011,2]
[338167316,1726334458873,150.0,0.00011,2]
[338167317,1726334458895,150.0,0.00011,2]
[338167318,1726334460300,-345.21490143,0.00013,2]
[338167320,1726334723919,150.0,0.00011303,2]
[338167321,1726334723944,144.39,0.00011303,2]
[338167322,1726334724329,150.0,0.00010959,2]
[338167323,1726334724353,10.0,0.00010959,2]
[338167327,1726334834412,150.0,0.000123,2]
[338167328,1726334834434,71.242007,0.000123,2]
[338167333,1726334914294,150.0,0.00010959,2]
[338167334,1726334914318,76.54,0.00010959,2]
[338167342,1726334934640,150.0,0.00012487,2]
[338167343,1726334934667,824.0,0.00012487,2]
[338167346,1726334988449,-240.56527954,0.00012889,2]
[338167358,1726335032515,-162.72,0.00012869,2]
[338167360,1726335032524,-300.0,0.00012889,2]
[338167362,1726335032534,-2391.8815,0.0001289,2]
[338167378,1726335038376,-785.78700674,0.0001289,2]
[338167379,1726335038601,-1002.48597011,0.0001289,2]
[338167380,1726335038624,-5162.99999999,0.0001289,2]
[338167383,1726335038840,-38023.86133681,0.0001289,2]
[338167385,1726335038850,-1098.36868114,0.000129,2]
[338167387,1726335038860,-250.0,0.00012901,2]
[338167389,1726335038870,-153.86,0.0001299,2]
[338167391,1726335038883,-153.86,0.0001299,2]
[338167393,1726335038893,-153.86,0.0001299,2]
[338167395,1726335038903,-150.0,0.00012997,2]
[338167397,1726335038915,-29999.99999701,0.00012998,2]
[338167399,1726335038925,-1000.0,0.00012999,2]
[338167401,1726335038934,-500.0,0.00012999,2]
[338167403,1726335038944,-324.12840728,0.00012999,2]
[338167405,1726335038953,-500.0,0.00012999,2]
[338167407,1726335038964,-342.20702753,0.00012999,2]
[338167409,1726335038973,-421904.98175487,0.00013,2]
[338167411,1726335038982,-754.78509857,0.00013,2]
[338167413,1726335038991,-2276472.0746171,0.00013,2]
[338167547,1726335040344,-300.0,0.00013,2]
[338167583,1726335040689,-1001.55781673,0.00013,2]
[338167586,1726335040708,-1366.17758745,0.00013,2]
[338167830,1726335043398,-562.6023957,0.00013,2]
[338167833,1726335043410,-18386.04645497,0.00013,2]
[338167835,1726335043421,-730.07140233,0.00013,2]
[338167837,1726335043432,-652.62529538,0.00013,2]
[338167840,1726335043455,-1363.36679717,0.00013,2]
[338167842,1726335043466,-273.20557687,0.00013,2]
[338167844,1726335043477,-4246.81921635,0.00013,2]
[338167846,1726335043488,-942.316296,0.00013,2]
[338167848,1726335043500,-15236.64405893,0.00013,2]
[338167868,1726335043695,-548.79774281,0.00013,2]
[338167870,1726335043707,-20464.29,0.00013,2]
[338168143,1726335046594,-17306.3086151,0.00013,2]
[338168170,1726335046842,-1996.88135758,0.00013,2]
[338168174,1726335046878,-734.01641473,0.00013,2]
[338168176,1726335046888,-2610.19070253,0.00013,2]
[338168179,1726335046911,-812.74759037,0.00013,2]
[338168181,1726335046922,-943.31862009,0.00013,2]
[338168183,1726335046933,-7811.78430333,0.00013,2]
[338168186,1726335046946,-14599.27129953,0.00013,2]
[338168190,1726335046980,-3145.66036694,0.00013,2]
[338168193,1726335046991,-11450.0,0.00013,2]
[338168195,1726335047002,-743.3523116,0.00013,2]
[338168197,1726335047012,-1874.06416438,0.00013,2]
[338168202,1726335047053,-588.94,0.00013,2]
[338168205,1726335047064,-635.39287192,0.00013,2]
[338168207,1726335047075,-3929.113636,0.00013,2]
[338168209,1726335047085,-6144.81105737,0.00013,2]
[338168445,1726335211081,150.0,0.00010959,2]
[338168446,1726335211106,4.97,0.00010959,2]
[338168447,1726335223363,210.80104692,0.00011861,2]
[338168448,1726335223388,39.19895308,0.00011861,2]
[338168449,1726335241864,150.0,0.00011876,2]
[338168450,1726335241885,150.0,0.00011876,2]
[338168451,1726335241904,150.0,0.00011876,2]
[338168452,1726335241924,50.0,0.00011876,2]
[338168453,1726335243353,-1106.4,0.00012646,2]
[338168454,1726335244702,307.74,9.961e-05,2]
[338168455,1726335245468,-1202.63409667,0.00012655,2]
[338168456,1726335245509,307.74,0.00012225,2]
[338168457,1726335246165,-649.78590333,0.00012655,2]
[338168458,1726335247584,-150.24,0.00012663,2]
[338168459,1726335248498,-215.35,0.00012713,2]
[338168460,1726335250046,-1191.41180557,0.00012716,2]
[338168461,1726335250726,-514.9049,0.00012716,2]
[338168462,1726335251761,150.0,0.00012492,2]
[338168463,1726335251782,42.24,0.00012492,2]
[338168464,1726335251810,-349.2404,0.00012716,2]
[338168465,1726335252943,-286.37490143,0.00012716,2]
[338168466,1726335262583,500.0,0.00011876,2]
[338168467,1726335284357,349.2404,0.00012546,2]
[338168468,1726335286636,653.43,0.00012051,2]
[338168469,1726335323747,942.67,0.00011915,2]
[338168470,1726335326760,-251.39949522,0.00012652,2]
[338168471,1726335326782,-215.35,0.00012716,2]
[338168472,1726335326803,-215.35,0.00012719,2]
[338168473,1726335326824,-215.35,0.00012723,2]
[338168474,1726335326846,-215.35,0.00012726,2]
[338168475,1726335326868,-215.35,0.00012729,2]
[338168476,1726335326888,-27340.06627299,0.00012729,2]
[338168477,1726335326909,-215.35,0.00012733,2]
[338168478,1726335326929,-215.35,0.00012736,2]
[338168479,1726335326950,-215.35,0.00012739,2]
[338168480,1726335326969,-215.35,0.00012743,2]
[338168481,1726335326989,-215.35,0.00012746,2]
[338168482,1726335327010,-215.35,0.00012749,2]
[338168483,1726335327030,-39.68423179,0.00012753,2]
[338168484,1726335406560,233.89,0.00012375,2]
[338168485,1726335438708,500.0,0.00012375,2]
[338168486,1726335453010,1500.0,0.00012375,2]
[338168487,1726335506354,250.0,0.00012394,2]
[338168488,1726335518085,1000.0,0.00012394,2]
[338168489,1726335547688,250.0,0.00012431,2]
[338168490,1726335582340,21838.47,0.0001251,2]
[338168491,1726335625616,214.28,0.00012434,2]
[338168492,1726335682521,153.01,0.00012562,2]
[338168493,1726335682739,136.7498969,0.00012568,2]
[338168494,1726335682764,16.2601031,0.00012568,2]
[338168495,1726335682963,153.01,0.00012574,2]
[338168496,1726335683197,153.01,0.0001258,2]
[338168497,1726335683413,153.01,0.00012587,2]
[338168498,1726335683731,153.01,0.00012593,2]
[338168499,1726335683851,153.01,0.00012599,2]
[338168500,1726335684068,153.01,0.00012606,2]
[338168501,1726335684522,153.01,0.00012612,2]
[338168502,1726335684719,153.01,0.00012618,2]
[338168503,1726335684937,153.01,0.00012624,2]
[338168504,1726335741791,150.0,0.00010911,2]
[338168505,1726335741816,186.85,0.00010911,2]
[338168507,1726335842977,203.91,0.0001251,2]
[338168508,1726335886487,179.17,0.00010959,2]
[338168510,1726336017228,1500.0,0.00012548,2]
[338168512,1726336055699,250.0,0.00012506,2]
[338168513,1726336059015,250.0,0.00012506,2]
[338168514,1726336068902,200.0,0.00012506,2]
[338168524,1726336184470,150.0,0.00012538,2]
[338168525,1726336184494,3.29,0.00012538,2]
[338168526,1726336184665,146.71,0.00012569,2]
[338168527,1726336184685,6.58,0.00012569,2]
[338168528,1726336184878,143.42,0.00012601,2]
[338168529,1726336184900,9.87,0.00012601,2]
[338168530,1726336206809,198.94,0.00012557,2]
[338168531,1726336229828,73.05,0.00012599,2]
[338168532,1726336229848,142.78,0.00012599,2]
[338168534,1726336231590,-183.00821368,0.00012742,2]
[338168535,1726336231599,-109.93157001,0.000128,2]
[338168536,1726336231615,-404.97332999,0.000128,2]
[338168537,1726336231625,-171.01,0.00012842,2]
[338168538,1726336231634,-20.20760717,0.000129,2]
[338168539,1726336231672,-1921.65669832,0.000129,2]
[338168540,1726336231682,-732.24578742,0.000129,2]
[338168541,1726336231691,-153.86,0.0001299,2]
[338168542,1726336231701,-153.86,0.0001299,2]
[338168543,1726336231710,-153.86,0.0001299,2]
[338168544,1726336231722,-153.86,0.0001299,2]
[338168545,1726336231731,-153.86,0.0001299,2]
[338168547,1726336231741,-1055.7337502,0.0001299,2]
[338168548,1726336231750,-1000.0,0.00012999,2]
[338168550,1726336231759,-502.27311717,0.00012999,2]
[338168552,1726336231770,-297.76,0.00012999,2]
[338168553,1726336231779,-150.0,0.00012999,2]
[338168555,1726336231791,-9617.58100844,0.00013,2]
[338168557,1726336231802,-2519.95441177,0.00013,2]
[338168559,1726336231857,-9255.13457725,0.00013,2]
[338168565,1726336237676,-668.52975339,0.00013,2]
[338168566,1726336237979,-72.94,0.00013,2]
[338168567,1726336237991,-47123.49382601,0.00013,2]
[338168576,1726336239637,-31.28951357,0.00013,2]
[338168577,1726336239648,-1128.25200002,0.00013,2]
[338168578,1726336239699,-651.91352624,0.00013,2]
[338168579,1726336239711,-1566.53013246,0.00013,2]
[338168580,1726336239726,-6017.26552697,0.00013,2]
[338168588,1726336242516,-388.005,0.00013,2]
[338168590,1726336242625,-393160.5737764,0.00013,2]
[338168591,1726336242636,-155558.64817733,0.00013,2]
[338168592,1726336242871,-1311613.9632407,0.00013,2]
[338168593,1726336242881,-754030.98537037,0.00013,2]
[338168594,1726336242890,-200.0,0.00013,2]
[338168595,1726336242901,-4158.00504722,0.00013,2]
[338168596,1726336242911,-499.99,0.00013,2]
[338168598,1726336242921,-200.0,0.00013,2]
[338168606,1726336243106,-174.28,0.00013122,2]
[338168607,1726336243117,-2336.77,0.00013122,2]
[338168608,1726336243126,-150.99,0.00013122,2]
[338168609,1726336243135,-409.01,0.00013122,2]
[338168610,1726336243146,-200.0,0.0001313,2]
[338168611,1726336243156,-200.0,0.0001313,2]
[338168612,1726336243166,-336.85,0.00013175,2]
[338168613,1726336243175,-3000.0,0.0001321,2]
[338168614,1726336243184,-3000.0,0.0001321,2]
[338168615,1726336243193,-3000.0,0.0001321,2]
[338168616,1726336243202,-833.12351,0.0001321,2]
[338168617,1726336243211,-833.12352,0.0001321,2]
[338168618,1726336243220,-174.37,0.00013212,2]
[338168619,1726336243228,-3000.0,0.0001323,2]
[338168620,1726336243237,-3000.0,0.0001323,2]
[338168621,1726336243246,-833.12352,0.0001323,2]
[338168622,1726336243255,-833.12352,0.0001323,2]
[338168623,1726336243265,-833.12352,0.0001323,2]
[338168624,1726336243274,-500.0,0.00013246,2]
[338168625,1726336243283,-498.09216816,0.00013344,2]
[338168626,1726336245511,-427.85,0.0001337,2]
[338168627,1726336245520,-150.0,0.0001337,2]
[338168628,1726336245530,-150.0,0.0001337,2]
[338168629,1726336245539,-300.0,0.0001337,2]
[338168630,1726336245549,-200.0,0.00013388,2]
[338168631,1726336245559,-427.85,0.000134,2]
[338168632,1726336245568,-150.0,0.000134,2]
[338168633,1726336245577,-150.0,0.000134,2]
[338168634,1726336245586,-752.82,0.000134,2]
[338168635,1726336245596,-150.0,0.000134,2]
[338168636,1726336245605,-426.4,0.000134,2]
[338168637,1726336245614,-150.0,0.000134,2]
[338168638,1726336245624,-752.82,0.000134,2]
[338168639,1726336245634,-150.0,0.000134,2]
[338168640,1726336245644,-150.0,0.000134,2]
[338168641,1726336245653,-185.22,0.000134,2]
[338168642,1726336245662,-427.85,0.000135,2]
[338168643,1726336245671,-150.0,0.000135,2]
[338168644,1726336245681,-150.0,0.000135,2]
[338168645,1726336245690,-200.0,0.00013522,2]
[338168646,1726336245700,-1941.86430545,0.00013567,2]
[338168647,1726336245709,-300.0,0.000136,2]
[338168648,1726336245721,-150.0,0.000136,2]
[338168649,1726336245731,-150.0,0.000136,2]
[338168650,1726336245740,-752.82,0.000136,2]
[338168651,1726336245750,-609.0,0.000136,2]
[338168652,1726336245759,-150.0,0.000136,2]
[338168653,1726336245770,-427.85,0.000136,2]
[338168654,1726336245780,-200.0,0.00013657,2]
[338168655,1726336245789,-157.28,0.00013706,2]
[338168656,1726336245799,-1941.86430545,0.00013789,2]
[338168657,1726336245809,-2216.94258126,0.00013793,2]
[338168658,1726336245819,-200.0,0.00013794,2]
[338168659,1726336245828,-425.0,0.000138,2]
[338168660,1726336245837,-19441.66142464,0.000138,3]
[338168661,1726336245849,-3464.78695368,0.000138,3]
[338168662,1726336246115,-3111.91375659,0.000138,3]
[338168663,1726336246126,-9451.04241489,0.000138,3]
[338168664,1726336246135,-3663.98407447,0.000139,3]
[338168665,1726336246159,-335.30570427,0.000139,3]
[338168666,1726336246207,-1208.0,0.000139,3]
[338168667,1726336246217,-259.18571279,0.000139,3]
[338168668,1726336246228,-586.925,0.000139,3]
[338168669,1726336246250,-692.17038355,0.000139,3]
[338168670,1726336262349,72.94,0.00011,2]
[338168671,1726336262371,977.06,0.00011,2]
[338168672,1726336351151,150.0,0.00011262,2]
[338168673,1726336351174,150.0,0.00011262,2]
[338168674,1726336351199,76.35,0.00011262,2]
[338168676,1726336384972,153.78,0.00010959,2]
[338168677,1726336450347,96.22,0.000123,2]
[338168678,1726336450368,150.0,0.000123,2]
[338168679,1726336450388,247.29,0.000123,2]
[338168680,1726336450411,7.29355888,0.000123,2]
[338168682,1726337007337,381.38,0.00010947,2]
[338168683,1726337115597,150.0,0.00010892,2]
[338168712,1726337230166,152.02,0.00010959,2]
[338168713,1726337303526,-397.29,0.00012785,2]
[338168714,1726337303548,-250.0,0.00012785,2]
[338168715,1726337303575,-250.0,0.00012788,2]
[338168716,1726337303596,-228.77,0.00012835,2]
[338168717,1726337303617,-160.0,0.00012838,2]
[338168718,1726337303637,-1500.0,0.00012847,2]
[338168719,1726337303659,-173.77,0.00012863,2]
[338168720,1726337303681,-423.17,0.00012879,2]
[338168721,1726337333404,2827.45922205,0.000125,3]
[338168733,1726337431592,-228.77,0.00012849,2]
[338168735,1726337431602,-171.01,0.00012864,2]
[338168737,1726337431612,-276.32,0.00012879,2]
[338168744,1726337431668,-140.51,0.00012879,2]
[338168746,1726337431677,-500.0,0.00012972,2]
[338168747,1726337431687,-605.058807,0.00013,2]
[338168749,1726337431698,-494.941193,0.00013,2]
[338168751,1726337431707,-297.57,0.00013,2]
[338168753,1726337431715,-150.0,0.0001321,2]
[338168754,1726337431725,-300.0,0.0001321,2]
[338168755,1726337431734,-151.99611696,0.00013211,2]
[338168756,1726337431756,-229.38388304,0.00013211,2]
[338168757,1726337431766,-51.65214836,0.00013211,2]
[338168758,1726337431777,-2300.15785164,0.00013211,2]
[338168759,1726337431786,-463.02307124,0.00013211,2]
[338168760,1726337431797,-3094.63215291,0.00013211,2]
[338168761,1726337431807,-2276.38477585,0.00013211,2]
[338168762,1726337431817,-6456.65610172,0.00013211,2]
[338168763,1726337431841,-864.71389828,0.00013211,2]
[338168764,1726337431851,-169.22,0.00013372,2]
[338168765,1726337431860,-316.0695372,0.00013521,2]
[338168766,1726337431869,-150.0,0.00013639,2]
[338168767,1726337431878,-351.01,0.00013682,2]
[338168768,1726337431887,-150.0,0.00013693,2]
[338168769,1726337431896,-174.93,0.00013699,2]
[338168770,1726337431910,-695.84172128,0.000137,2]
[338168771,1726337431921,-1469.54192835,0.000137,2]
[338168772,1726337431930,-151.02,0.000137,2]
[338168773,1726337431939,-150.0,0.00013712,2]
[338168774,1726337431948,-150.0,0.00013749,2]
[338168776,1726337431957,-150.0,0.00013753,2]
[338168778,1726337431966,-150.0,0.00013761,2]
[338168780,1726337431975,-1500.0,0.00013784,2]
[338168782,1726337431984,-33.19927914,0.00013785,2]
[338168785,1726337431998,-116.80072086,0.00013785,2]
[338168787,1726337432008,-150.0,0.00013795,2]
[338168790,1726337432017,-1966.36916416,0.000138,3]
[338168792,1726337432028,-33.63083584,0.000138,3]
[338168794,1726337432037,-1295.96287,0.000138,2]
[338168795,1726337432046,-225.80218857,0.00013804,2]
[338168797,1726337432055,-150.0,0.00013807,2]
[338168799,1726337432064,-150.0,0.00013812,2]
[338168801,1726337432073,-150.0,0.00013823,2]
[338168803,1726337432082,-150.0,0.00013853,2]
[338168805,1726337432091,-150.0,0.00013858,2]
[338168806,1726337432100,-150.0,0.00013884,2]
[338168808,1726337432109,-566.72613257,0.00013894,2]
[338168809,1726337432118,-1000.0,0.00013894,2]
[338168810,1726337432127,-1000.0,0.00013895,2]
[338168811,1726337432138,-5785.95856815,0.00013895,2]
[338168812,1726337432149,-3433.56,0.00013895,2]
[338168813,1726337432162,-38109.47568375,0.00013895,2]
[338168814,1726337432171,-1000.0,0.00013908,2]
[338168815,1726337432180,-825.37832583,0.00013922,2]
[338168816,1726337432189,-64883.3665192,0.00013929,2]
[338168817,1726337432200,-300.0,0.00013939,2]
[338168818,1726337432209,-1000.0,0.00014027,2]
[338168819,1726337432219,-266.393,0.00014027,2]
[338168820,1726337432228,-800.0,0.00014068,2]
[338168821,1726337432237,-198.94,0.00014127,2]
[338168822,1726337432246,-60629.42696154,0.00014127,2]
[338168823,1726337432258,-109925.02874779,0.00014127,2]
[338168824,1726337432267,-161.12232565,0.00014173,2]
[338168825,1726337432276,-500.0,0.00014173,2]
[338168826,1726337432286,-299.97250509,0.00014173,2]
[338168827,1726337432295,-300.73,0.00014192,2]
[338168828,1726337432305,-1419.629305,0.00014299,2]
[338168829,1726337432314,-212.322221,0.00014299,2]
[338168830,1726337432323,-5678.517219,0.00014299,2]
[338168831,1726337432333,-255.0,0.00014319,2]
[338168832,1726337432344,-500.0,0.00014342,2]
[338168833,1726337432353,-150.0,0.00014399,2]
[338168834,1726337432363,-160.0,0.00014442,2]
[338168835,1726337432372,-150.0,0.00014467,2]
[338168836,1726337432382,-1146.0,0.00014467,2]
[338168837,1726337432390,-12356.866,0.00014467,2]
[338168838,1726337432401,-1419.629305,0.00014478,2]
[338168839,1726337432410,-5678.517219,0.00014478,2]
[338168840,1726337432419,-150.0,0.00014479,2]
[338168841,1726337432429,-448.334,0.00014479,2]
[338168842,1726337432438,-443.774,0.00014479,2]
[338168843,1726337432448,-248.0,0.00014479,2]
[338168844,1726337432457,-806.0,0.00014479,2]
[338168845,1726337432466,-1121.0,0.00014479,2]
[338168846,1726337432475,-1653.653,0.00014479,2]
[338168847,1726337432485,-1920.0,0.00014479,2]
[338168848,1726337432494,-420.0,0.00014484,2]
[338168849,1726337432503,-840.0,0.00014488,2]
[338168850,1726337432513,-500.0,0.00014521,2]
[338168851,1726337432523,-500.0,0.00014616,2]
[338168852,1726337432533,-3089.91303983,0.00014647,3]
[338168853,1726337432543,-1419.629305,0.00014657,2]
[338168854,1726337432554,-5678.517219,0.00014657,2]
[338168855,1726337432563,-3089.91303983,0.0001479,3]
[338168856,1726337432573,-321.92497364,0.0001479,2]
[338168857,1726337432583,-3000.0,0.000148,2]
[338168858,1726337432593,-176.677,0.000148,2]
[338168859,1726337432603,-6179.82607966,0.00014826,3]
[338168860,1726337432613,-1419.629305,0.00014836,2]
[338168861,1726337432623,-5678.517219,0.00014836,2]
[338168862,1726337432634,-1295.96288,0.0001484,2]
[338168863,1726337432644,-150.75966,0.0001485,2]
[338168864,1726337432655,-156.2770892,0.0001488,2]
[338168865,1726337432664,-193.40085634,0.0001488,2]
[338168866,1726337432674,-500.0,0.0001488,2]
[338168867,1726337432684,-27809.2173585,0.0001488,3]
[338168868,1726337432693,-35223.01540068,0.0001489,2]
[338168870,1726337432703,-3089.91303983,0.0001489,3]
[338168871,1726337432713,-7500.0,0.0001489,2]
[338168872,1726337432722,-390.42058661,0.000149,2]
[338168873,1726337432731,-2081.6165013,0.000149,2]
[338168874,1726337432741,-153.31,0.0001495,2]
[338168875,1726337432750,-87847.77607977,0.0001496,3]
[338168876,1726337433142,-4849.61511513,0.0001496,3]
[338168877,1726337433153,-13089.37853888,0.0001497,3]
[338168878,1726337433166,-30389.27840015,0.0001497,3]
[338168879,1726337433177,-56726.87052297,0.0001497,3]
[338168880,1726337433188,-153.31,0.0001497,2]
[338168881,1726337433200,-500.0,0.00014973,2]
[338168882,1726337433210,-638.0,0.0001498,2]
[338168883,1726337433219,-11883.98105203,0.0001498,2]
[338168884,1726337433230,-896.13144154,0.0001498,2]
[338168890,1726337437727,-269.085,0.00014467,2]
[338168891,1726337437738,-305.07545363,0.00014467,2]
[338168892,1726337437749,-388.55649859,0.00014467,2]
[338168893,1726337437760,-116.28304778,0.00014467,2]
[338168894,1726337437769,-490.71695222,0.0001498,2]
[338168895,1726337437870,-140.28304778,0.0001498,2]
[338168896,1726337437879,-791.88054352,0.0001498,2]
[338168897,1726337437940,-673221.27245292,0.0001498,2]